[Event "81st Georgian Women-ch 2024"]
[Site "Tbilisi"]
[Date "2024.02.13"]
[Round "5.4"]
[White "Kirtadze, Anastasia"]
[Black "Arabidze, Meri"]
[Result "0-1"]
[ECO "C79"]
[WhiteElo "1981"]
[BlackElo "2466"]
[Annotator "RC"]
[PlyCount "140"]
[EventDate "2024.02.08"]
[EventType "tourn"]
[EventCountry "GEO"]
[SourceTitle "playchess.com"]
[Source "ChessBase"]
[SourceQuality "1"]
[TimeControl "40/5400+30:1800+30"]

1. e4 {[%emt 0:04:59]} e5 {[%emt 0:00:06]} 2. Nf3 {[%emt 0:00:02]} Nc6 {[%emt 0:00:07]} 3. Bb5 {[%emt 0:00:13]} a6 {[%emt 0:00:06]} 4. Ba4 {[%emt 0:00:26]} Nf6 {[%emt 0:00:06]} 5. O-O {[%emt 0:00:43]} d6 {[%emt 0:00:05]} 6. Bxc6+ {[%emt 0:01:48]} bxc6 {[%emt 0:00:06]} 7. Re1 {[%emt 0:00:46]} Bg4 {[%emt 0:02:49]} 8. h3 {[%emt 0:01:38]} Bxf3 {[%emt 0:00:13]} 9. Qxf3 {[%emt 0:00:49]} Nd7 {[%emt 0:00:04]} 10. d3 {[%emt 0:10:15]} g6 {[%emt 0:00:55]} 11. Nc3 {[%emt 0:09:25]} Bg7 {[%emt 0:00:13]} 12. Ne2 {[%emt 0:05:15]} O-O {[%emt 0:07:15]} 13. g4 {[%emt 0:02:01]} Nc5 {[%emt 0:01:25]} 14. Be3 {[%emt 0:12:30]} Ne6 {[%emt 0:00:32]} 15. Rab1 {[%emt 0:03:10]} Qd7 {[%emt 0:08:27]} 16. Kh1 {[%emt 0:05:08]} c5 {[%emt 0:03:12]} 17. b3 {[%emt 0:05:03]} Qe7 {[%emt 0:10:17]} 18. Qg2 {[%emt 0:02:00]} Rae8 {[%emt 0:06:08]} 19. f4 {[%emt 0:02:04]} exf4 {[%emt 0:01:14]} 20. Nxf4 {[%emt 0:00:13]} Nd4 {[%emt 0:00:36]} 21. Nd5 {[%emt 0:06:26]} Qd8 {[%emt 0:00:52]} 22. g5 {[%emt 0:01:53]} Re6 {[%emt 0:05:59]} 23. Rf1 {[%emt 0:05:55]} c6 {[%emt 0:04:28]} 24. Nf4 {[%emt 0:00:48]} Re5 {[%emt 0:06:32]} 25. h4 {[%emt 0:01:03]} f6 {[%emt 0:00:37]} 26. Bxd4 {[%emt 0:01:19]} cxd4 {[%emt 0:00:44]} 27. Nh3 {[%emt 0:01:41]} Qe7 {[%emt 0:09:03]} 28. Rf2 {[%emt 0:02:44]} d5 {[%emt 0:06:00]} 29. exd5 {[%emt 0:04:39]} Rxd5 {[%emt 0:00:04]} 30. Re2 {[%emt 0:04:33]} Re5 {[%emt 0:09:55]} 31. Rbe1 {[%emt 0:01:12]} Rxe2 {[%emt 0:03:16]} 32. Rxe2 {[%emt 0:01:06]} Qd6 {[%emt 0:00:14]} 33. Qg4 {[%emt 0:02:42]} Kh8 {[%emt 0:03:04]} 34. Kg2 {[%emt 0:00:31]} fxg5 {[%emt 0:01:56]} 35. hxg5 {[%emt 0:00:44]} Be5 {[%emt 0:02:37]} 36. Rf2 {[%emt 0:01:49]} Qd5+ {[%emt 0:02:42]} 37. Kg1 {[%emt 0:00:36]} Rf5 {[%emt 0:01:03]} 38. Qe4 {[%emt 0:00:48]} Qe6 {[%emt 0:03:36]} 39. Kg2 {[%emt 0:00:25]} Kg7 {[%emt 0:00:41]} 40. Re2 {[%emt 0:00:00]} Qd6 {[%emt 0:00:00]} 41. Rf2 {[%emt 0:09:54]} Qe6 {[%emt 0:01:34]} 42. Re2 {[%emt 0:01:36]} Kf7 {[%emt 0:01:38]} 43. Qh4 {[%emt 0:06:17]} Qd5+ {[%emt 0:01:30]} 44. Re4 {[%emt 0:00:39]} Kg8 {[%emt 0:04:35]} 45. Qg4 {[%emt 0:01:20]} Kg7 {[%emt 0:06:08]} 46. Kg1 {[%emt 0:02:20]} Qc5 {[%emt 0:03:57]} 47. Qe2 {[%emt 0:02:56]} Kf7 {[%emt 0:00:44]} 48. Rh4 {[%emt 0:01:26]} Kg8 {[%emt 0:01:12]} 49. Re4 {[%emt 0:00:11]} Kg7 {[%emt 0:00:35]} 50. Kg2 {[%emt 0:00:54]} a5 {[%emt 0:00:59]} 51. a4 {[%emt 0:01:16]} Kf8 {[%emt 0:01:38]} 52. Kg1 {[%emt 0:01:08]} Qd5 {[%emt 0:00:12]} 53. Qg4 {[%emt 0:01:26]} Kg8 {[%emt 0:00:07]} 54. Qe2 {[%emt 0:00:12]} Kf7 {[%emt 0:01:11]} 55. Qg4 {[%emt 0:00:22]} Ke7 {[%emt 0:01:05]} 56. Qh4 {[%emt 0:02:06]} Qf7 {[%emt 0:01:21]} 57. Qe1 {[%emt 0:00:08]} Kd6 {[%emt 0:00:45]} 58. Kg2 {[%emt 0:01:05]} Qd5 {[%emt 0:00:24]} 59. Kg1 {[%emt 0:02:10]} Kc7 {[%emt 0:00:39]} 60. Kg2 {[%emt 0:00:47]} Kb7 {[%emt 0:00:49]} 61. Qh4 {[%emt 0:01:24]} Rf7 {[%emt 0:01:11]} 62. Qg4 {[%emt 0:00:52]} Rf5 {[%emt 0:02:11]} 63. Kg1 {[%emt 0:00:39]} Kb6 {[%emt 0:00:31]} 64. Qe2 {[%emt 0:01:13]} Bc7 {[%emt 0:01:35]} 65. Qg2 {[%emt 0:00:31]} Qd6 {[%emt 0:02:48]} 66. Re2 {[%emt 0:00:40]} Qa3 {[%emt 0:01:08]} 67. Qe4 {[%emt 0:00:30]} Qc1+ {[%emt 0:00:55]} 68. Re1 {[%emt 0:00:12]} Qxc2 {[%emt 0:00:14]} 69. Qxd4+ {[%emt 0:00:37]} c5 {[%emt 0:01:37]} 70. Re6+ {[%emt 0:00:27]} Ka7 {[%emt 0:00:01]} 0-1

[Event "81st Georgian Women-ch 2024"]
[Site "Tbilisi"]
[Date "2024.02.13"]
[Round "5.5"]
[White "Lomaia, Diana"]
[Black "Javakhishvili, Lela"]
[Result "0-1"]
[ECO "A57"]
[WhiteElo "2037"]
[BlackElo "2433"]
[Annotator "TA"]
[PlyCount "90"]
[EventDate "2024.02.08"]
[EventType "tourn"]
[EventCountry "GEO"]
[SourceTitle "playchess.com"]
[Source "ChessBase"]
[SourceQuality "1"]
[TimeControl "40/5400+30:1800+30"]

{[%evp 11,90,29,31,7,12,4,4,5,16,-21,-21,-61,-45,-82,-69,-64,-54,-43,-37,-160,-90,-164,-183,-186,-184,-172,-100,-210,-145,-277,-142,-231,-230,-239,-237,-234,-224,-217,-210,-215,-189,-220,-227,-237,-209,-203,-188,-219,-209,-362,-354,-520,-507,-510,-556,-550,-493,-566,-525,-558,-558,-725,-725,-725,-730,-838,-806,-760,-766,-1890,-1895,-2604,-2093,-2629,-1540,-2240,-2108,-2816,-2344,-2996,-2847]} 1. d4 {[%emt 0:00:03]} Nf6 {[%emt 0:00:13]} 2. c4 {[%emt 0:00:05]} c5 {[%emt 0:00:08]} 3. d5 {[%emt 0:00:23]} b5 {[%emt 0:00:14]} 4. Qc2 {[%emt 0:00:22]} b4 {[%emt 0:00:41]} 5. e4 {[%emt 0:01:34]} d6 {[%emt 0:00:06]} 6. Nf3 {[%emt 0:01:38]} g6 {[%emt 0:00:08]} 7. Bd3 {[%emt 0:01:05]} Bg7 {[%emt 0:00:08]} 8. O-O {[%emt 0:01:12]} O-O {[%emt 0:00:26]} 9. h3 {[%emt 0:01:04] The position is equal.} e6 {[%emt 0:04:46]} 10. dxe6 {[%emt 0:05:55]} Bxe6 {[%emt 0:00:23]} 11. Bf4 {[%emt 0:04:03]} Nc6 {[%emt 0:01:53]} 12. Rd1 {[%emt 0:03:06]} Nh5 {[%emt 0:06:50]} 13. Bh2 {[%emt 0:18:39][%cal Oe4e5]} Nd4 {[%emt 0:02:41]} 14. Nxd4 {[%emt 0:03:00]} Bxd4 {[%emt 0:00:06]} 15. e5 {[%emt 0:13:20] [#] Against Qf6} dxe5 {[%emt 0:03:39] Black has more active pieces. The white rooks are passive.} (15... Qg5 $142 $1 16. Qd2 Qxd2 17. Nxd2 dxe5 (17... Bxb2 $2 18. exd6 Bxa1 19. Rxa1 $17)) 16. Be4 {[%emt 0:04:25] [#]} (16. Nd2 $17) 16... Qg5 $1 $36 {[%emt 0:10:14][%cal Oe6h3][%mdl 2048] Keeping White busy.} 17. Bxa8 {[%emt 0:11:55]} Rxa8 {[%emt 0:00:13]} 18. Kh1 {[%emt 0:03:04]} Qh4 {[%emt 0:07:54]} (18... Nf4 $19 {[%csl Gf4][%cal Rg5g2]} 19. Qe4 Rd8 20. Bxf4 Qxf4 (20... exf4 21. Nd2 $17) 21. Qxf4 exf4) 19. Rf1 {[%emt 0:11:10]} (19. Qe2 $17) 19... Nf4 {[%emt 0:10:41][%cal Oe6h3]} 20. Bg3 {[%emt 0:05:38]} (20. Qe4 $17 Rf8 21. Nd2) 20... Qh6 {[%emt 0:08:16]} (20... Qh5 $19 {[%cal Oe6h3] Hoping for ...Bxh3!} 21. Bxf4 Bf5 (21... exf4 $2 22. Qe4 $19)) 21. Bxf4 {[%emt 0:01:28]} (21. h4 $17) 21... Qxf4 {[%emt 0:00:18]} 22. Qe2 {[%emt 0:05:28] White is weak on the dark squares} Rd8 {[%emt 0:05:55][%cal Oe6c4]} 23. Nd2 {[%emt 0:02:42]} Bxb2 {[%emt 0:00:59]} 24. Rad1 {[%emt 0:00:01]} Bd4 {[%emt 0:00:28]} 25. Nb3 {[%emt 0:00:31]} Rc8 {[%emt 0:01:26]} 26. Na5 {[%emt 0:00:29]} h5 {[%emt 0:04:16]} 27. Qd2 {[%emt 0:01:04]} Qf6 {[%emt 0:01:47]} 28. Qe2 {[%emt 0:00:32]} Qh4 {[%emt 0:03:05]} 29. Kh2 {[%emt 0:00:31]} e4 {[%emt 0:01:09]} 30. f4 $2 {[%emt 0:00:25]} (30. Kg1 {might work better.}) 30... e3 {[%emt 0:03:16] aiming for ...Bg4.} 31. Qe1 {[%emt 0:00:36]} (31. Nb3 $142 Bg4 32. Qe1 Qxe1 33. Rdxe1) 31... Qd8 {[%emt 0:01:27] Black is clearly winning.} 32. Nb3 {[%emt 0:00:12]} Bxc4 {[%emt 0:00:09] A strong pair of Bishops.} 33. Rf3 {[%emt 0:00:18]} Qf6 {[%emt 0:05:22]} 34. Rc1 {[%emt 0:00:47]} Bxb3 {[%emt 0:02:39]} 35. axb3 {[%emt 0:00:02]} a5 {[%emt 0:00:13][%cal Oa5a4]} 36. Qe2 {[%emt 0:00:58] [#]} a4 $1 {[%emt 0:00:30]} 37. bxa4 {[%emt 0:00:16]} b3 {[%emt 0:00:16]} 38. Qc4 {[%emt 0:00:32]} b2 {[%emt 0:00:24]} 39. Rb1 {[%emt 0:00:21]} Qe6 {[%emt 0:01:16]} 40. Qe2 {[%emt 0:00:00]} c4 {[%emt 0:00:00] And now ...c3 would win.} 41. f5 {[%emt 0:03:50]} Qe5+ {[%emt 0:03:40]} 42. Kh1 {[%emt 0:01:15]} Qe4 {[%emt 0:02:52]} 43. Rff1 {[%emt 0:01:42]} Qd3 {[%emt 0:02:37]} 44. Qe1 {[%emt 0:04:07]} Bc3 {[%emt 0:03:07]} 45. Qh4 {[%emt 0:01:29]} e2 {[%emt 0:00:11] Weighted Error Value: White=0.80/Black=0.28 (precise) .  Mistake:       	White=7     	Black=3      Inaccurate:     	White=3     	Black=1      OK:         	White=9     	Black=16     Brilliant:      	---       	Black=1} 0-1

[Event "81st Georgian Women-ch 2024"]
[Site "Tbilisi"]
[Date "2024.02.15"]
[Round "6.1"]
[White "Melia, Salome"]
[Black "Javakhishvili, Lela"]
[Result "1/2-1/2"]
[ECO "C67"]
[WhiteElo "2355"]
[BlackElo "2433"]
[Annotator "TA"]
[PlyCount "37"]
[EventDate "2024.02.08"]
[EventType "tourn"]
[EventCountry "GEO"]
[SourceTitle "playchess.com"]
[Source "ChessBase"]
[SourceQuality "1"]
[TimeControl "40/5400+30:1800+30"]

{[%evp 18,37,20,19,19,16,15,17,19,14,21,2,10,8,4,0,11,6,10,14,13,0]} 1. e4 {[%emt 0:00:03]} e5 {[%emt 0:00:17]} 2. Nf3 {[%emt 0:00:08]} Nc6 {[%emt 0:00:07]} 3. Bb5 {[%emt 0:00:05]} Nf6 {[%emt 0:00:58]} 4. O-O {[%emt 0:03:02][%cal Bh1f1,Bf1e1,Be1e5][%mdl 32]} Nxe4 {[%emt 0:00:15]} 5. Re1 {[%emt 0:02:38]} Nd6 {[%emt 0:00:30]} 6. Nxe5 {[%emt 0:00:14]} Nxe5 {[%emt 0:01:16]} 7. Rxe5+ {[%emt 0:00:03]} Be7 {[%emt 0:00:07]} 8. Bf1 {[%emt 0:00:08]} O-O {[%emt 0:00:17]} 9. d4 {[%emt 0:00:22]} Bf6 {[%emt 0:00:50]} 10. Re1 {[%emt 0:00:10] The position is equal.} Re8 {[%emt 0:01:07]} 11. Bf4 {[%emt 0:01:07]} Rxe1 {[%emt 0:03:09]} 12. Qxe1 {[%emt 0:00:10]} Ne8 {[%emt 0:01:15][%cal Bd6e8,Be8g7,Bg7f5][%mdl 32]} 13. c3 {[%emt 0:02:48]} d5 {[%emt 0:01:13]} 14. Bd3 {[%emt 0:03:14]} g6 {[%emt 0:01:17]} 15. Nd2 {[%emt 0:01:26]} Ng7 {[%emt 0:01:06]} 16. Qe2 {[%emt 0:02:06]} c6 {[%emt 0:01:37]} 17. Re1 {[%emt 0:01:08]} Bf5 {[%emt 0:01:15]} 18. Bxf5 {[%emt 0:00:17]} Nxf5 {[%emt 0:00:07]} 19. Nf3 {[%emt 0:02:01] An uneventful encounter.   Weighted Error Value: White=0.03 (flawless) /Black=0.01 (flawless) .  OK:         	White=5     	Black=5} 1/2-1/2

[Event "81st Georgian Women-ch 2024"]
[Site "Tbilisi"]
[Date "2024.02.15"]
[Round "6.2"]
[White "Arabidze, Meri"]
[Black "Lomaia, Diana"]
[Result "1-0"]
[ECO "E49"]
[WhiteElo "2466"]
[BlackElo "2037"]
[Annotator "TA"]
[PlyCount "107"]
[EventDate "2024.02.08"]
[EventType "tourn"]
[EventCountry "GEO"]
[SourceTitle "playchess.com"]
[Source "ChessBase"]
[SourceQuality "1"]
[TimeControl "40/5400+30:1800+30"]

{[%evp 19,107,0,33,21,33,38,35,41,63,48,49,49,61,37,63,36,56,31,78,47,47,37,62,59,56,40,43,35,45,50,47,45,43,39,40,50,52,0,39,0,187,185,193,173,180,176,149,157,202,170,202,201,222,230,216,222,318,308,346,260,416,404,421,434,480,466,470,468,524,535,522,522,574,520,508,535,574,568,568,560,701,701,701,676,664,647,968,828,910,863]} 1. d4 {[%emt 0:00:03]} Nf6 {[%emt 0:00:04]} 2. c4 {[%emt 0:00:04]} e6 {[%emt 0:00:04]} 3. Nc3 {[%emt 0:00:05]} Bb4 {[%emt 0:00:14]} 4. e3 {[%emt 0:00:05]} c5 {[%emt 0:02:08]} 5. Bd3 {[%emt 0:01:27]} O-O {[%emt 0:01:10]} 6. Nge2 {[%emt 0:01:46]} d5 {[%emt 0:01:48]} 7. a3 {[%emt 0:02:28]} Bxc3+ {[%emt 0:04:35]} 8. bxc3 {[%emt 0:00:19]} dxc4 {[%emt 0:08:13]} 9. Bxc4 {[%emt 0:01:37]} Qc7 {[%emt 0:00:37]} 10. Bd3 {[%emt 0:00:06]} b6 {[%emt 0:01:11]} 11. e4 {[%emt 0:04:20]} cxd4 {[%emt 0:11:37]} 12. cxd4 {[%emt 0:00:11]} Bb7 {[%emt 0:00:37]} 13. f3 {[%emt 0:02:34] White is slightly better.} Nc6 {[%emt 0:03:47][%cal Oc6d4,Bb8c6,Bc6a5,Ba5b3][%mdl 32]} 14. Bb2 {[%emt 0:04:49]} Rfd8 {[%emt 0:04:08]} 15. O-O {[%emt 0:02:20]} Rac8 {[%emt 0:03:39]} 16. Rc1 {[%emt 0:03:05][%cal Od4d5]} Qe7 {[%emt 0:01:14]} 17. Qe1 {[%emt 0:03:18]} Na5 {[%emt 0:03:35]} 18. Qh4 {[%emt 0:04:48] [#] e5 is the strong threat.} Nd5 {[%emt 0:04:14]} 19. Qf2 {[%emt 0:00:41]} (19. Qxe7 {simplifies} Nxe7 20. Rxc8 Rxc8 21. Bc3) 19... Nc7 {[%emt 0:02:53]} 20. Qg3 {[%emt 0:11:18][%cal Od4d5]} Nb3 {[%emt 0:11:43]} 21. Rc3 {[%emt 0:06:04]} Na5 {[%emt 0:07:49]} (21... Nxd4 $2 22. Nxd4 (22. Rxc7 Qxc7 23. Nxd4 Qxg3 $15) 22... Ne8 (22... Rxd4 $2 23. Rc4 $18) 23. Rxc8 Rxc8 24. Rd1 $18) 22. d5 $40 {[%emt 0:06:56][%cal Oc3c7][%mdl 128] [#] Black must now prevent Rxc7! Black needs to defend precisely.} Ne8 {[%emt 0:02:08]} 23. Rxc8 {[%emt 0:02:15]} Rxc8 {[%emt 0:02:02]} 24. Nd4 {[%emt 0:08:07]} (24. Nf4 {keeps more tension.} Nc4 25. Bxc4 Rxc4 26. Bxg7 Nxg7 27. Nh5) 24... Nc4 $1 {[%emt 0:02:27]} 25. Bxc4 {[%emt 0:00:37]} Rxc4 {[%emt 0:00:05]} 26. Qb8 {[%emt 0:02:17]} Bc8 {[%emt 0:10:14]} 27. Nc6 {[%emt 0:05:48]} Qb7 {[%emt 0:02:01]} (27... Qc5+ 28. Kh1 Bd7 (28... exd5 $2 29. exd5 Kf8 30. Re1 $18) 29. Ne5 $16 (29. Nxa7 $2 exd5 30. exd5 Rc2 $19) (29. Qxa7 Bxc6 30. dxc6 f6 $11)) 28. Qg3 {[%emt 0:00:45]} (28. Rd1 $14) 28... Rc2 {[%emt 0:04:22]} 29. Bd4 {[%emt 0:00:19]} Rxc6 $2 {[%emt 0:04:43] Black is on the road to losing.} (29... Qd7 $11) 30. dxc6 $18 {[%emt 0:00:13]} Qxc6 {[%emt 0:00:01] Black is weak on the dark squares} 31. Qb8 {[%emt 0:09:43]} Qd7 {[%emt 0:00:12]} 32. Bf2 {[%emt 0:00:17]} Ba6 {[%emt 0:00:07]} 33. Rc1 {[%emt 0:00:56] White is more active.} h6 {[%emt 0:00:21]} 34. h4 {[%emt 0:01:59]} Kh7 {[%emt 0:00:27]} 35. Qe5 {[%emt 0:02:32]} Qd2 {[%emt 0:01:31]} 36. Qa1 {[%emt 0:00:52]} Qf4 {[%emt 0:00:48]} 37. Rd1 {[%emt 0:01:51]} Nf6 {[%emt 0:00:45]} (37... Qc7 {was worth a try.} 38. a4 Bb7) 38. Qb1 {[%emt 0:01:36] e5+ would now be deadly.} e5 {[%emt 0:00:46]} 39. Qb3 {[%emt 0:00:46] Prevents Bc4} Be2 {[%emt 0:00:40]} (39... Nh5 $142 40. Rd7 Qc1+ 41. Qd1 Qxa3 42. Rxa7 (42. Rxf7 Bd3 $18) 42... Nf4 43. Rxf7 (43. Bxb6 Qb2 $18) 43... Bd3) 40. Re1 {[%emt 0:00:00]} Qd2 {[%emt 0:00:00]} 41. Qxf7 {[%emt 0:02:32] White is clearly winning.} b5 {[%emt 0:08:46]} 42. Qxa7 {[%emt 0:01:05]} Bc4 {[%emt 0:00:19]} 43. Qe3 {[%emt 0:00:31]} Qb2 {[%emt 0:01:49]} 44. Qc1 {[%emt 0:01:12]} Qb3 {[%emt 0:00:43]} 45. Qa1 {[%emt 0:01:08]} Nd7 {[%emt 0:00:44]} 46. Qd1 {[%emt 0:01:05]} Nf6 {[%emt 0:01:10]} 47. Qxb3 {[%emt 0:00:17]} Bxb3 {[%emt 0:00:05][%mdl 4096] Endgame. KRB-KBN} 48. Bg3 {[%emt 0:00:29]} Nd7 {[%emt 0:00:31]} 49. Rc1 {[%emt 0:00:30]} Kg6 {[%emt 0:01:01]} 50. Rc7 {[%emt 0:00:15]} Be6 {[%emt 0:00:21]} 51. Rb7 {[%emt 0:00:07]} Kf6 {[%emt 0:01:37]} 52. Rxb5 {[%emt 0:00:06]} g5 {[%emt 0:02:29]} 53. a4 {[%emt 0:00:48]} Bc4 {[%emt 0:01:01]} 54. Rb7 {[%emt 0:00:09] Weighted Error Value: White=0.12 (very precise) /Black=0.28 (precise) .  Loses game:     	---       	Black=1      Mistake:       	White=1     	Black=3      Inaccurate:     	White=3     	Black=1      OK:         	White=21    	Black=15     Strong:       	---       	Black=1} 1-0

[Event "81st Georgian Women-ch 2024"]
[Site "Tbilisi"]
[Date "2024.02.15"]
[Round "6.3"]
[White "Mgeladze, Kesaria"]
[Black "Kirtadze, Anastasia"]
[Result "1-0"]
[ECO "B22"]
[WhiteElo "2038"]
[BlackElo "1981"]
[Annotator "NA RC"]
[PlyCount "49"]
[EventDate "2024.02.08"]
[EventType "tourn"]
[EventCountry "GEO"]
[SourceTitle "playchess.com"]
[Source "ChessBase"]
[SourceQuality "1"]
[TimeControl "40/5400+30:1800+30"]

1. e4 {[%emt 0:00:03]} c5 {[%emt 0:00:05]} 2. Nf3 {[%emt 0:00:03]} e6 {[%emt 0:00:03]} 3. c3 {[%emt 0:00:06]} d5 {[%emt 0:00:49]} 4. exd5 {[%emt 0:00:05]} Qxd5 {[%emt 0:00:04]} 5. d4 {[%emt 0:00:16]} Nf6 {[%emt 0:01:24]} 6. Na3 {[%emt 0:00:27]} a6 {[%emt 0:00:46]} 7. Nc4 {[%emt 0:00:29]} Nbd7 {[%emt 0:00:36]} 8. Be2 {[%emt 0:00:45]} b5 {[%emt 0:04:38]} 9. Ne3 {[%emt 0:07:08]} Qc6 {[%emt 0:06:41]} 10. a4 {[%emt 0:05:06]} Bb7 {[%emt 0:02:13]} 11. axb5 {[%emt 0:20:38]} axb5 {[%emt 0:00:39]} 12. Rxa8+ {[%emt 0:00:02]} Bxa8 {[%emt 0:00:06]} 13. Qb3 {[%emt 0:13:26]} c4 {[%emt 0:06:32]} 14. Qa2 {[%emt 0:00:23]} Nd5 {[%emt 0:04:16]} 15. Nxd5 {[%emt 0:02:27]} Qxd5 {[%emt 0:01:10]} 16. Nh4 {[%emt 0:07:37]} e5 {[%emt 0:28:48]} 17. O-O {[%emt 0:14:49]} e4 {[%emt 0:07:15]} 18. Nf5 {[%emt 0:04:44]} g6 {[%emt 0:05:17]} 19. Ne3 {[%emt 0:00:05]} Qb7 {[%emt 0:01:22]} 20. b3 {[%emt 0:01:13]} f5 {[%emt 0:02:33]} 21. bxc4 {[%emt 0:00:24]} Be7 {[%emt 0:09:02]} 22. Nd5 {[%emt 0:02:51]} Bd8 {[%emt 0:01:25]} 23. Bh6 {[%emt 0:01:07]} Nf6 {[%emt 0:07:50]} 24. Ra1 {[%emt 0:01:02]} Nxd5 {[%emt 0:00:24]} 25. cxd5 {[%emt 0:00:06]} 1-0

[Event "81st Georgian Women-ch 2024"]
[Site "Tbilisi"]
[Date "2024.02.15"]
[Round "6.4"]
[White "Donghvani, Nia"]
[Black "Tsetskhladze, Mariam"]
[Result "1/2-1/2"]
[ECO "E16"]
[WhiteElo "2036"]
[BlackElo "1912"]
[Annotator "NA RC"]
[PlyCount "85"]
[EventDate "2024.02.08"]
[EventType "tourn"]
[EventCountry "GEO"]
[SourceTitle "playchess.com"]
[Source "ChessBase"]
[SourceQuality "1"]
[TimeControl "40/5400+30:1800+30"]

1. Nf3 {[%emt 0:00:07]} d5 {[%emt 0:03:39]} 2. g3 {[%emt 0:00:17]} b6 {[%emt 0:00:26]} 3. Bg2 {[%emt 0:05:14]} Bb7 {[%emt 0:00:51]} 4. d4 {[%emt 0:05:58]} e6 {[%emt 0:01:50]} 5. O-O {[%emt 0:03:04]} Nf6 {[%emt 0:03:35]} 6. c4 {[%emt 0:00:44]} dxc4 {[%emt 0:04:25]} 7. Qa4+ {[%emt 0:00:03]} Nbd7 {[%emt 0:00:30]} 8. Nbd2 {[%emt 0:13:56]} a6 {[%emt 0:06:16]} 9. Qxc4 {[%emt 0:00:33]} b5 {[%emt 0:03:45]} 10. Qc2 {[%emt 0:05:43]} c5 {[%emt 0:00:51]} 11. dxc5 {[%emt 0:13:54]} Bxc5 {[%emt 0:04:21]} 12. Nb3 {[%emt 0:06:58]} Bb6 {[%emt 0:15:26]} 13. Bf4 {[%emt 0:00:40]} Rc8 {[%emt 0:04:45]} 14. Qd1 {[%emt 0:00:39]} O-O {[%emt 0:02:50]} 15. e3 {[%emt 0:04:14]} Re8 {[%emt 0:04:04]} 16. Ne5 {[%emt 0:04:39]} Bxg2 {[%emt 0:02:38]} 17. Kxg2 {[%emt 0:00:24]} Nd5 {[%emt 0:02:33]} 18. Kg1 {[%emt 0:04:21]} Nf8 {[%emt 0:13:17]} 19. Nd3 {[%emt 0:02:03]} Ng6 {[%emt 0:03:41]} 20. Be5 {[%emt 0:00:16]} Nxe5 {[%emt 0:17:04]} 21. Nxe5 {[%emt 0:00:10]} Qg5 {[%emt 0:03:26]} 22. Nf3 {[%emt 0:03:01]} Qf6 {[%emt 0:00:05]} 23. Qe2 {[%emt 0:03:05]} Rc4 {[%emt 0:00:37]} 24. Rac1 {[%emt 0:02:56]} Rec8 {[%emt 0:00:13]} 25. Kg2 {[%emt 0:04:05]} h6 {[%emt 0:01:04]} 26. Rxc4 {[%emt 0:00:57]} Rxc4 {[%emt 0:00:41]} 27. Rc1 {[%emt 0:00:15]} Rxc1 {[%emt 0:00:16]} 28. Nxc1 {[%emt 0:00:01]} Qd8 {[%emt 0:00:28]} 29. Nb3 {[%emt 0:09:16]} Qc7 {[%emt 0:00:34]} 30. Nbd4 {[%emt 0:01:17]} Qb7 {[%emt 0:00:43]} 31. Kg1 {[%emt 0:01:27]} Qc8 {[%emt 0:00:18]} 32. Qc2 {[%emt 0:01:30]} Qxc2 {[%emt 0:00:23]} 33. Nxc2 {[%emt 0:00:02]} Kf8 {[%emt 0:00:38]} 34. Kf1 {[%emt 0:00:26]} Ke7 {[%emt 0:00:18]} 35. Ke2 {[%emt 0:00:18]} Kd6 {[%emt 0:00:19]} 36. e4 {[%emt 0:02:32]} Ne7 {[%emt 0:00:36]} 37. Nfe1 {[%emt 0:02:15]} Nc6 {[%emt 0:00:42]} 38. f4 {[%emt 0:00:38]} Nd4+ {[%emt 0:00:24]} 39. Nxd4 {[%emt 0:00:36]} Bxd4 {[%emt 0:00:50]} 40. b3 {[%emt 0:00:00]} f5 {[%emt 0:00:00]} 41. Nf3 {[%emt 0:03:37]} Bb6 {[%emt 0:05:18]} 42. Kd3 {[%emt 0:00:23]} Bd8 {[%emt 0:05:57]} 43. Nd4 {[%emt 0:09:13]} 1/2-1/2